bitfinex-derivatives/quotes_SOLF0:USTF0_20251122
["timestamp","ask_amount","ask_price","bid_price","bid_amount"]
[1763802605106,10.32334322,126.45,126.34,126.07958243]
[1763802605107,3.15,126.44,126.37,7.1269]
[1763802605309,3.15,126.44,126.38,16.64]
[1763802605508,3.15,126.44,126.37,16.64]
[1763802605706,3.29,126.41,126.37,16.64]
[1763802605912,3.29,126.41,126.33,23.40518996]
[1763802606112,3.29,126.39,126.34,16.64]
[1763802606407,3.29,126.37,126.36,0.05008424]
[1763802606612,0.05556851,126.38,126.36,0.05008424]
[1763802606810,3.34556851,126.38,126.36,0.05008424]
[1763802608513,0.05556851,126.38,126.36,0.05008424]
[1763802609709,3.29,126.44,126.37,7.1271]
[1763802609917,3.29,126.44,126.35,110.883]
[1763802610813,0.05617208,126.41,126.38,7.18000173]
[1763802611014,0.05617208,126.41,126.39,16.66]
[1763802611206,3.34617208,126.41,126.39,16.66]
[1763802611618,3.34617208,126.41,126.38,0.05350173]
[1763802613811,0.05617208,126.41,126.38,0.05350173]
[1763802614721,0.05617208,126.41,126.38,7.18000173]
[1763802618221,3.34617208,126.41,126.38,0.05350173]
[1763802618418,3.34617208,126.41,126.39,16.64]
[1763802622319,3.34617208,126.41,126.38,0.05350173]
[1763802622519,3.34617208,126.41,126.38,16.69350173]
[1763802622721,0.05617208,126.41,126.38,16.69350173]
[1763802624623,0.05617208,126.41,126.39,7.1261]
[1763802624824,110.7837,126.47,126.38,133.42554863]
[1763802624825,3.29,126.47,126.38,133.42554863]
[1763802625126,3.29,126.46,126.39,7.1256]
[1763802625323,3.29,126.46,126.38,133.3720469]
[1763802625724,0.05181173,126.43,126.41,0.05120289]
[1763802625929,0.05181173,126.43,126.42,16.64]
[1763802628329,7.1207,126.49,126.42,23.764]
[1763802628526,3.29,126.48,126.42,23.764]
[1763802629426,3.29,126.48,126.44,0.05332835]
[1763802631730,10.4112,126.48,126.44,0.05332835]
[1763802631934,3.29,126.46,126.44,0.05332835]
[1763802632631,10.4123,126.46,126.44,0.05332835]
[1763802632942,3.29,126.45,126.44,0.05332835]
[1763802633236,3.29,126.44,126.4,16.64]
[1763802634233,3.34332835,126.43,126.41,0.05010418]
[1763802635327,0.05332835,126.43,126.41,0.05010418]
[1763802635529,3.33332835,126.43,126.41,0.05010418]
[1763802642043,0.05332835,126.43,126.41,0.05010418]
[1763802642440,0.05332835,126.43,126.41,2.16469985]
[1763802642633,0.05332835,126.43,126.41,9.28959985]
[1763802643331,3.20332835,126.43,126.41,0.05010418]
[1763802648842,3.15,126.42,126.41,0.05010418]
[1763802649540,0.05332835,126.43,126.41,0.05010418]
[1763802649945,3.20332835,126.43,126.41,0.05010418]
[1763802650541,0.05332835,126.43,126.41,9.28959985]
[1763802659058,0.05332835,126.43,126.42,16.64]
[1763802660657,3.20332835,126.43,126.41,9.28959985]
[1763802660862,3.20332835,126.43,126.41,0.05010418]
[1763802663563,3.20332835,126.43,126.39,2.11459567]
[1763802663765,3.15,126.42,126.39,18.75459567]
[1763802663968,3.15,126.42,126.39,16.64]
[1763802664568,3.15,126.42,126.39,16.69122187]
[1763802664569,3.20277881,126.42,126.39,16.69122187]
[1763802666565,3.20277881,126.42,126.39,0.05122187]
[1763802666867,3.20277881,126.42,126.39,16.69122187]
[1763802671063,0.05277881,126.42,126.4,7.1254]
[1763802671269,0.05277881,126.42,126.4,10.43012398]
[1763802671462,0.05277881,126.42,126.4,7.1254]
[1763802671761,0.05277881,126.42,126.41,16.64]
[1763802672168,0.05277881,126.42,126.4,7.1254]
[1763802672374,3.37277881,126.42,126.39,16.69122187]
[1763802673267,0.05277881,126.42,126.39,16.69122187]
[1763802673776,3.37277881,126.42,126.39,16.69122187]
[1763802674674,3.37277881,126.42,126.39,23.81712187]
[1763802674972,0.05277881,126.42,126.39,23.81712187]
[1763802675271,3.37277881,126.42,126.39,16.69122187]
[1763802676066,3.37277881,126.42,126.39,0.05122187]
[1763802676259,3.37277881,126.42,126.4,16.64]
[1763802679477,0.05277881,126.42,126.4,16.64]
[1763802679978,3.37277881,126.42,126.39,0.05122187]
[1763802681065,3.32,126.4,126.39,0.05122187]
[1763802681671,9.32862984,126.4,126.39,0.05122187]
[1763802681868,3.37277881,126.42,126.39,0.05122187]
[1763802682065,6.00761701,126.41,126.39,0.05122187]
[1763802682272,3.32,126.4,126.39,0.05122187]
[1763802682474,3.37277881,126.42,126.39,0.05122187]
[1763802682671,9.32740364,126.41,126.39,0.05122187]
[1763802682871,0.05277881,126.42,126.39,0.05122187]
[1763802683072,3.37277881,126.42,126.39,0.05122187]
[1763802685767,0.05277881,126.42,126.39,0.05122187]
[1763802687678,0.05277881,126.42,126.4,7.1255]
[1763802690276,0.05277881,126.42,126.41,16.64]
[1763802690978,0.05277881,126.42,126.4,7.1255]
[1763802691273,0.05277881,126.42,126.41,16.64]
[1763802692575,10.70787046,126.48,126.41,19.94472398]
[1763802692774,9.32568347,126.47,126.43,7.1238]
[1763802692981,3.32,126.46,126.43,7.1238]
[1763802693672,3.37065372,126.46,126.43,7.17510176]
[1763802696581,3.37065372,126.46,126.43,0.05130176]
[1763802696776,3.02,126.44,126.43,0.05130176]
[1763802696974,9.02402449,126.44,126.43,0.05130176]
[1763802697171,9.02402449,126.44,126.43,0.00130176]
[1763802697372,3.02,126.43,126.4,16.64]
[1763802698376,3.07325402,126.43,126.4,16.69643196]
[1763802698571,3.07325402,126.43,126.4,0.05643196]
[1763802699979,3.02,126.41,126.38,16.64]
[1763802701080,3.02,126.41,126.38,16.69392815]
[1763802707391,0.05325402,126.43,126.4,7.1254]
[1763802709684,3.07325402,126.43,126.38,0.05392815]
[1763802709886,3.07325402,126.43,126.4,16.64]
[1763802710091,0.05325402,126.43,126.4,16.64]
[1763802711391,3.07325402,126.43,126.4,16.64]
[1763802711700,3.07325402,126.43,126.39,16.64]
[1763802711890,0.05325402,126.43,126.39,16.64]
[1763802712487,0.05325402,126.43,126.39,7.126]
[1763802712682,3.07325402,126.43,126.4,16.64]
[1763802712994,3.07325402,126.43,126.39,7.126]
[1763802713195,3.07325402,126.43,126.4,16.64]
[1763802714195,3.07325402,126.43,126.39,23.766]
[1763802714785,3.07325402,126.43,126.39,7.126]
[1763802714988,3.07325402,126.43,126.4,23.7655]
[1763802715188,3.07325402,126.43,126.4,7.1255]
[1763802715383,3.07325402,126.43,126.4,23.7655]
[1763802715990,3.07325402,126.43,126.4,7.1255]
[1763802716398,3.07325402,126.43,126.4,23.7655]
[1763802716600,3.07325402,126.43,126.4,7.1255]
[1763802716793,0.05325402,126.43,126.41,10.42962398]
[1763802717099,0.05325402,126.43,126.41,10.48445822]
[1763802718500,0.05325402,126.43,126.41,0.05483424]
[1763802718802,0.05325402,126.43,126.42,16.64]
[1763802721603,3.07325402,126.43,126.41,0.05483424]
[1763802724506,0.05325402,126.43,126.41,0.05483424]
[1763802725600,0.05325402,126.43,126.41,7.17963424]
[1763802725905,0.05325402,126.43,126.41,0.05483424]
[1763802726103,3.35325402,126.43,126.41,0.05483424]
[1763802728907,0.05325402,126.43,126.41,0.05483424]
[1763802729102,0.05325402,126.43,126.41,16.69483424]
[1763802729800,0.05325402,126.43,126.41,23.81973424]
[1763802731107,3.3,126.48,126.42,3.30472398]
[1763802731313,3.3,126.5,126.42,114.12672398]
[1763802731612,5.99726761,126.49,126.42,114.12672398]
[1763802731806,5.99726761,126.48,126.42,114.12672398]
[1763802732012,3.3,126.5,126.44,0.05326361]
[1763802732213,0.05375893,126.46,126.45,16.64]
[1763802732412,0.05532448,126.47,126.45,16.64]
[1763802732607,0.05532448,126.47,126.45,23.7627]
[1763802732810,0.05532448,126.47,126.45,25.87518292]
[1763802734615,10.68735262,126.55,126.48,110.7685]
[1763802734806,9.28970974,126.54,126.5,2.11248292]
[1763802735114,5.98970974,126.53,126.5,2.11248292]
[1763802735315,3.3,126.54,126.5,2.11248292]
[1763802735516,0.04980894,126.53,126.51,0.05573015]
[1763802736911,3.34980894,126.53,126.51,0.05573015]
[1763802740911,0.04980894,126.53,126.51,0.05573015]
[1763802741928,0.04980894,126.53,126.52,2.11248292]
[1763802744618,10.4155,126.58,126.52,9.23118292]
[1763802744818,3.3,126.58,126.52,2.11248292]
[1763802745534,3.3,126.63,126.56,2.11248292]
[1763802745719,3.3,126.63,126.57,16.62]
[1763802745919,3.3,126.63,126.58,0.05792992]
[1763802746830,3.3,126.59,126.58,0.05792992]
[1763802747423,3.3,126.6,126.58,0.05792992]
[1763802751532,3.3,126.64,126.59,2.11248292]
[1763802752833,3.3,126.64,126.59,16.62]
[1763802755228,3.3,126.63,126.59,16.62]
[1763802756529,2.11248292,126.61,126.58,0.05792992]
[1763802756833,3.19,126.6,126.58,0.05792992]
[1763802757622,10.3044,126.6,126.58,0.05792992]
[1763802757822,3.19,126.59,126.58,0.05792992]
[1763802760436,3.19,126.58,126.53,2.11248292]
[1763802760631,5.30248292,126.57,126.51,2.11248292]
[1763802760828,3.19,126.56,126.49,18.73248292]
[1763802761535,3.24729443,126.54,126.51,0.0596005]
[1763802762230,2.11248292,126.57,126.51,0.0596005]
[1763802762231,3.19,126.61,126.55,7.1169]
[1763802762533,3.19,126.6,126.54,18.73248292]
[1763802762724,3.19,126.6,126.54,2.11248292]
[1763802762931,10.3044,126.6,126.54,2.11248292]
[1763802763228,3.19,126.59,126.56,0.05024921]
[1763802776449,3.19,126.61,126.56,0.05024921]
[1763802776646,3.19,126.63,126.57,2.11248292]
[1763802776844,3.19,126.62,126.59,0.05983337]
[1763802780251,3.19,126.62,126.59,2.17231629]
[1763802780554,3.19,126.64,126.59,2.17231629]
[1763802780757,3.19,126.62,126.59,2.17231629]
[1763802781460,3.19,126.62,126.59,0.05983337]
[1763802782361,3.19,126.6,126.59,0.05983337]
[1763802792367,3.19,126.6,126.55,16.6]
[1763802793266,0.05843339,126.59,126.56,0.05510472]
[1763802793466,3.33,126.58,126.56,0.05510472]
[1763802805265,3.33,126.58,126.56,7.17160472]
[1763802813280,3.38843339,126.59,126.57,7.1159]
[1763802813476,3.33,126.62,126.56,114.04991879]
[1763802813686,3.33,126.62,126.56,113.99481407]
[1763802814572,3.33,126.62,126.59,7.1147]
[1763802814782,3.33,126.62,126.6,16.6]
[1763802818475,3.0,126.66,126.6,16.6]
[1763802818675,3.0,126.66,126.62,0.05977355]
[1763802819878,3.0,126.68,126.62,114.00288762]
[1763802820085,3.0,126.68,126.64,0.05528967]
[1763802820277,3.0,126.68,126.65,23.7113]
[1763802821389,3.0,126.68,126.64,0.05528967]
[1763802821684,3.0,126.68,126.64,16.65528967]
[1763802821880,3.0,126.66,126.64,16.65528967]
[1763802822488,3.0,126.64,126.6,2.85]
[1763802822681,3.0,126.64,126.61,16.6]
[1763802822882,7.64798823,126.63,126.61,3.14]
[1763802823081,7.64798823,126.62,126.61,19.74]
[1763802823984,3.05318474,126.63,126.61,19.74]
[1763802824592,3.05318474,126.63,126.61,16.6]
[1763802829291,0.05318474,126.63,126.62,3.14]
[1763802829891,3.0,126.66,126.62,3.14]
[1763802830491,3.0,126.68,126.63,3.14]
[1763802830798,3.0,126.68,126.64,0.05563847]
[1763802831188,3.0,126.68,126.64,3.19563847]
[1763802831785,3.0,126.68,126.64,10.30753847]
[1763802831988,3.0,126.7,126.65,3.14]
[1763802832189,3.0,126.7,126.66,19.79127279]
[1763802833693,3.0,126.72,126.67,3.14]
[1763802833893,3.0,126.72,126.68,3.19819947]
[1763802836897,3.0,126.71,126.68,0.05819947]
[1763802840402,3.0,126.71,126.68,3.19819947]
[1763802841209,3.0,126.71,126.68,0.05819947]
[1763802842595,3.0,126.71,126.68,3.19819947]
[1763802843001,3.0,126.71,126.68,0.05819947]
[1763802844107,3.0,126.71,126.68,3.19819947]
[1763802846406,3.3,126.72,126.68,3.19819947]
[1763802851512,3.3,126.72,126.68,0.05819947]
[1763802852008,10.4076,126.72,126.68,3.37819947]
[1763802852312,3.3,126.7,126.68,0.05819947]
[1763802852711,3.3,126.69,126.68,0.05819947]
[1763802852908,3.3,126.68,126.64,3.32]
[1763802853311,3.3,126.68,126.63,19.9]
[1763802853507,3.3,126.68,126.64,3.32]
[1763802853815,3.3,126.66,126.65,0.05743802]
[1763802859411,3.3,126.66,126.63,16.58]
[1763802859710,3.3,126.66,126.6,22.00685831]
[1763802860512,3.35901614,126.64,126.62,0.05295359]
[1763802862921,5.40685831,126.63,126.62,0.05295359]
[1763802866519,3.3,126.62,126.57,5.42685831]
[1763802866820,3.3,126.62,126.57,3.32]
[1763802867511,3.3,126.62,126.58,3.32]
[1763802867716,3.35227379,126.61,126.58,3.3748352]
[1763802870625,0.05227379,126.61,126.59,3.32]
[1763802871824,0.05227379,126.61,126.6,3.32]
[1763802873116,0.05227379,126.61,126.6,5.42685831]
[1763802873321,3.3,126.66,126.61,3.32]
[1763802874318,3.35935398,126.65,126.62,3.37860666]
[1763802877927,3.35935398,126.65,126.63,3.07]
[1763802878628,3.35935398,126.65,126.62,10.24150666]
[1763802879131,3.35935398,126.65,126.62,0.05860666]
[1763802879427,10.47085398,126.65,126.62,0.05860666]
[1763802879625,3.05,126.64,126.62,0.05860666]
[1763802884036,3.05,126.63,126.62,0.05860666]
[1763802884337,5.15685831,126.63,126.62,0.05860666]
[1763802886840,3.05,126.61,126.58,16.6]
[1763802887838,3.10317843,126.61,126.58,16.6518201]
[1763802889038,3.10317843,126.61,126.59,3.07]
[1763802889428,0.05317843,126.61,126.59,3.07]
[1763802890537,0.05317843,126.61,126.59,10.1848]
[1763802892142,3.10317843,126.61,126.59,3.07]
[1763802892339,3.10317843,126.61,126.58,19.7218201]
[1763802893634,0.05317843,126.61,126.59,3.07]
[1763802895946,3.10317843,126.61,126.58,16.6518201]
[1763802896645,3.10317843,126.61,126.58,19.7218201]
[1763802897441,3.10317843,126.61,126.58,3.1218201]
[1763802900046,3.05,126.6,126.58,0.0518201]
[1763802900744,3.05,126.6,126.58,3.1218201]
[1763802900949,3.10317843,126.61,126.58,3.1218201]
[1763802902144,3.10317843,126.61,126.58,0.0518201]
[1763802902349,3.05,126.59,126.52,3.07]
[1763802902551,3.05,126.55,126.5,5.17685831]
[1763802902757,3.05,126.55,126.5,3.07]
[1763802903250,3.05,126.53,126.48,3.07]
[1763802903445,5.15685831,126.52,126.51,0.05526056]
[1763802903749,3.05,126.51,126.44,3.07]
[1763802903945,5.15685831,126.5,126.44,3.07]
[1763802904142,3.05,126.49,126.45,3.07]
[1763802904654,3.10771915,126.48,126.46,0.05494423]
[1763802907043,3.10771915,126.48,126.46,0.00494423]
[1763802907246,3.23,126.46,126.39,3.14]
[1763802907450,3.23,126.44,126.39,3.14]
[1763802907747,3.23,126.47,126.43,3.14]
[1763802907945,5.33685831,126.5,126.44,3.14]
[1763802908145,0.05477015,126.48,126.46,0.05335643]
[1763802908745,0.05477015,126.48,126.46,3.19335643]
[1763802910850,3.28477015,126.48,126.46,0.05335643]
[1763802911355,0.05477015,126.48,126.46,3.19335643]
[1763802913657,3.28477015,126.48,126.46,0.05335643]
[1763802913953,0.05477015,126.48,126.46,3.19335643]
[1763802914957,3.28477015,126.48,126.46,0.05335643]
[1763802915454,0.05477015,126.48,126.46,3.19335643]
[1763802917266,3.28477015,126.48,126.46,0.05335643]
[1763802921060,0.05477015,126.48,126.46,3.19335643]
[1763802923266,0.05477015,126.48,126.47,3.14]
[1763802932569,3.23,126.56,126.48,3.14]
[1763802932774,3.23,126.56,126.5,3.14]
[1763802932968,3.23,126.56,126.51,3.14]
[1763802933178,7.1155,126.58,126.51,3.14]
[1763802933573,7.1155,126.58,126.49,19.90127007]
[1763802933574,0.05135827,126.56,126.54,3.14]
[1763802935182,0.05135827,126.56,126.55,3.14]
[1763802937777,3.25135827,126.56,126.53,0.05471748]
[1763802938178,3.25135827,126.56,126.53,3.10471748]
[1763802944690,10.36795827,126.56,126.53,3.10471748]
[1763802945491,3.25135827,126.56,126.53,3.10471748]
[1763802948386,0.05135827,126.56,126.53,3.10471748]
[1763802948985,0.05135827,126.56,126.54,3.05]
[1763802949791,0.05135827,126.56,126.55,3.05]
[1763802949995,3.2,126.61,126.55,3.05]
[1763802950293,7.1136,126.62,126.56,3.05]
[1763802951190,0.05211392,126.6,126.59,3.05]
[1763802955491,3.2,126.65,126.59,3.05]
[1763802955692,3.2,126.68,126.59,3.05]
[1763802956400,0.0603226,126.65,126.62,3.10371033]
[1763802956791,3.2603226,126.65,126.62,0.05371033]
[1763802957496,0.0603226,126.65,126.62,3.10371033]
[1763802961106,7.1096,126.69,126.63,3.05]
[1763802961297,3.2,126.68,126.65,3.05]
[1763802961497,10.3096,126.69,126.65,3.05]
[1763802962112,0.05433649,126.68,126.66,3.10627228]
[1763802964204,3.25433649,126.68,126.66,0.05627228]
[1763802964706,0.05433649,126.68,126.66,3.10627228]
[1763802965405,3.2,126.72,126.66,3.10627228]
[1763802966200,10.3077,126.72,126.66,3.10627228]
[1763802966509,0.05377755,126.7,126.66,3.10627228]
[1763802967199,3.07377755,126.7,126.66,3.10627228]
[1763802967900,3.02,126.69,126.66,0.05627228]
[1763802968708,3.02,126.67,126.66,0.05627228]
[1763802970300,10.1299,126.68,126.66,0.05627228]
[1763802971208,7.1099,126.68,126.66,3.18627228]
[1763802971403,3.02,126.69,126.66,3.18627228]
[1763802971800,7.1099,126.68,126.66,3.18627228]
[1763802973416,10.1299,126.68,126.66,0.05627228]
[1763802973612,3.02,126.67,126.66,0.05627228]
[1763802974917,5.12749785,126.67,126.66,0.05627228]
[1763802975513,3.02,126.65,126.61,3.13]
[1763802976009,3.02,126.64,126.6,3.13]
[1763802976214,3.02,126.62,126.56,3.13]
[1763802976509,3.07435617,126.6,126.58,0.05913851]
[1763802976715,0.05435617,126.6,126.58,0.05913851]
[1763802977107,3.07435617,126.6,126.58,0.05913851]
[1763802977617,12.29625402,126.6,126.58,0.05913851]
[1763802978219,3.02,126.59,126.58,0.05913851]
[1763802979004,0.05435617,126.6,126.58,3.18913851]
[1763802979520,2.10749785,126.64,126.58,3.18913851]
[1763802980407,0.05777738,126.62,126.58,3.18913851]
[1763802981321,0.05777738,126.62,126.58,10.30443851]
[1763802981512,0.05777738,126.62,126.59,3.13]
[1763802982216,3.07777738,126.62,126.59,3.13]
[1763802982614,3.07777738,126.62,126.58,16.63913851]
[1763802982915,3.02,126.6,126.58,0.05913851]
[1763802983819,3.02,126.59,126.58,0.05913851]
[1763802986219,2.10749785,126.6,126.58,0.05913851]
[1763802986518,5.12749785,126.6,126.58,0.05913851]
[1763802987519,3.02,126.59,126.58,0.05913851]
[1763802987717,3.02,126.59,126.5,21.81749785]
[1763802987718,5.12749785,126.56,126.5,21.81749785]
[1763802988617,3.02,126.59,126.53,3.13]
[1763802988921,5.12749785,126.6,126.55,3.13]
[1763802989125,5.12749785,126.6,126.56,3.13]
[1763802989716,0.05092676,126.59,126.57,0.05353129]
[1763802990512,0.05092676,126.59,126.57,3.18353129]
[1763802992723,0.05092676,126.59,126.57,0.05353129]
[1763802992927,0.05092676,126.59,126.57,3.18353129]
[1763802999433,3.08092676,126.59,126.57,0.05353129]
[1763802999623,5.13749785,126.58,126.57,0.05353129]
[1763803001431,5.13749785,126.58,126.5,110.7521]
[1763803001432,3.03,126.57,126.5,3.0]
[1763803001627,3.03,126.54,126.5,3.0]
[1763803001834,3.03,126.52,126.48,3.0]
[1763803002335,5.13749785,126.51,126.45,19.58]
[1763803002529,5.19770084,126.51,126.49,0.0563384]
[1763803002831,3.09020299,126.51,126.49,0.0563384]
[1763803005736,3.03,126.5,126.49,0.0563384]
[1763803005934,3.03,126.5,126.44,3.0]
[1763803006929,0.05210978,126.48,126.46,0.06069798]
[1763803007131,3.08210978,126.48,126.46,0.06069798]
[1763803009236,3.08210978,126.48,126.41,7.26]
[1763803009536,3.03,126.45,126.41,3.0]
[1763803010048,3.08365417,126.44,126.42,0.06054218]
[1763803010231,0.05365417,126.44,126.42,0.06054218]
[1763803010435,3.08365417,126.44,126.42,0.06054218]
[1763803011042,3.03,126.43,126.37,3.0]
[1763803011539,10.1541,126.43,126.37,3.0]
[1763803011734,3.03,126.42,126.37,3.0]
[1763803012139,3.08114195,126.41,126.38,3.05681372]
[1763803013432,3.08114195,126.41,126.38,0.05681372]
[1763803013827,10.20644195,126.41,126.38,0.05681372]
[1763803014032,3.08114195,126.41,126.38,0.05681372]
[1763803014432,3.03,126.4,126.33,16.6]
[1763803015238,110.836,126.41,126.33,16.6]
[1763803015239,3.03,126.39,126.34,3.0]
[1763803015439,0.05592165,126.38,126.35,3.05927017]
[1763803016543,3.08592165,126.38,126.35,3.05927017]
[1763803017742,3.08592165,126.38,126.35,0.05927017]
[1763803018932,3.08592165,126.38,126.35,3.05927017]
[1763803020344,0.05592165,126.38,126.35,3.05927017]
[1763803020844,3.08592165,126.38,126.35,0.05927017]
[1763803021145,3.03,126.36,126.25,133.43604879]
[1763803021345,10.1592,126.34,126.27,3.0]
[1763803022044,0.05782552,126.32,126.29,3.0534508]
[1763803023939,3.08782552,126.32,126.29,3.0534508]
[1763803024141,3.03,126.3,126.26,3.0]
[1763803024336,3.03,126.28,126.25,16.6]
[1763803024542,5.14877472,126.29,126.26,3.0]
[1763803024740,3.03,126.28,126.25,16.6]
[1763803024942,3.03,126.28,126.25,19.6]
[1763803025145,3.08451567,126.28,126.25,19.66048471]
[1763803025746,3.08451567,126.28,126.25,0.06048471]
[1763803026237,10.21701567,126.28,126.25,0.06048471]
[1763803026436,3.16,126.27,126.25,0.06048471]
[1763803027240,7.18701567,126.28,126.25,3.32048471]
[1763803027241,3.21451567,126.28,126.25,3.32048471]
[1763803027438,0.05451567,126.28,126.25,3.32048471]
[1763803030545,3.16,126.34,126.26,3.26]
[1763803030951,3.16,126.34,126.27,3.26]
[1763803031554,3.16,126.31,126.29,0.059167]
[1763803032555,10.2908,126.31,126.29,0.059167]
[1763803032859,3.16,126.3,126.29,0.059167]
[1763803033456,3.16,126.31,126.29,0.059167]
[1763803033658,0.05818162,126.32,126.29,3.319167]
[1763803035263,0.05818162,126.32,126.31,3.26]
[1763803040959,7.1263,126.39,126.31,3.26]
[1763803041355,10.2863,126.39,126.31,3.26]
[1763803041552,3.16,126.38,126.32,3.26]
[1763803042064,0.05569479,126.36,126.34,0.06023073]
[1763803043562,3.21569479,126.36,126.34,0.06023073]
[1763803044569,10.34369479,126.36,126.34,0.06023073]
[1763803044865,3.16,126.35,126.34,0.06023073]
[1763803046170,9.0768002,126.35,126.34,0.06023073]
[1763803046364,3.16,126.35,126.34,0.06023073]
[1763803046866,3.16,126.34,126.31,16.62]
[1763803047062,3.16,126.34,126.31,19.88]
[1763803047568,3.16,126.34,126.31,16.62]
[1763803047865,3.16,126.34,126.31,19.94055606]
[1763803048565,7.18359479,126.36,126.31,16.68055606]
[1763803048566,3.16,126.32,126.31,16.68055606]
[1763803048771,9.08715586,126.32,126.31,0.06055606]
[1763803049664,5.92715586,126.32,126.31,3.32055606]
[1763803049870,0.05890851,126.33,126.31,3.32055606]
[1763803051467,0.05890851,126.33,126.31,10.45105606]
[1763803051674,0.05890851,126.33,126.32,3.26]
[1763803052768,9.16760578,126.33,126.31,0.06055606]
[1763803052966,5.94869727,126.32,126.31,0.06055606]
[1763803058671,0.05890851,126.33,126.31,0.06055606]
[1763803059775,0.05890851,126.33,126.31,10.19105606]
[1763803059978,0.05890851,126.33,126.32,3.0]
[1763803061680,3.26890851,126.33,126.31,0.06055606]
[1763803062382,0.05890851,126.33,126.31,3.06055606]
[1763803062979,3.26890851,126.33,126.31,0.06055606]
[1763803065898,0.05890851,126.33,126.31,3.06055606]
[1763803066891,0.05890851,126.33,126.31,10.19115606]
[1763803067193,3.21,126.39,126.32,3.0]
[1763803067393,3.21,126.41,126.33,3.0]
[1763803067700,9.17710769,126.4,126.35,3.0]
[1763803067997,3.21,126.4,126.34,16.62]
[1763803068187,3.26787934,126.38,126.36,0.05750091]
[1763803069898,0.05787934,126.38,126.36,0.05750091]
[1763803070084,7.18457934,126.38,126.36,0.05750091]
[1763803070291,3.21,126.37,126.36,0.05750091]
[1763803071199,3.26787934,126.38,126.36,0.05750091]
[1763803072692,10.39457934,126.38,126.36,0.05750091]
[1763803073995,3.26787934,126.38,126.36,0.05750091]
[1763803081111,3.21,126.37,126.36,0.05750091]
[1763803081408,9.18946562,126.37,126.36,0.05750091]
[1763803081703,7.128,126.36,126.3,26.7511]
[1763803081911,7.128,126.36,126.31,3.0]
[1763803081912,3.21,126.35,126.31,3.0]
[1763803082908,3.2615422,126.34,126.32,0.05472167]
[1763803084711,3.21,126.33,126.32,0.05472167]
[1763803086298,0.0515422,126.34,126.32,3.06472167]
[1763803086501,3.11,126.39,126.32,3.06472167]
[1763803086712,9.08949663,126.38,126.33,3.01]
[1763803086905,3.11,126.38,126.33,3.01]
[1763803087607,3.11,126.38,126.34,3.01]
[1763803087904,0.05064267,126.37,126.34,3.0694547]
[1763803088911,3.16064267,126.37,126.34,3.0694547]
[1763803089108,3.16064267,126.37,126.34,0.0594547]
[1763803089309,3.16064267,126.37,126.34,3.0694547]
[1763803089703,3.16064267,126.37,126.34,0.0594547]
[1763803090107,3.11,126.35,126.34,0.0594547]
[1763803090314,9.08937626,126.35,126.34,0.0594547]
[1763803090913,3.11,126.34,126.31,3.01]
[1763803091117,3.11,126.34,126.3,3.01]
[1763803091313,7.1277,126.37,126.3,3.01]
[1763803091620,3.11,126.35,126.31,3.01]
[1763803091915,0.05932278,126.34,126.32,3.06444823]
[1763803092804,3.16932278,126.34,126.32,0.05444823]
[1763803093205,10.29842278,126.34,126.32,0.05444823]
[1763803093409,3.11,126.33,126.32,0.05444823]
[1763803097523,0.05932278,126.34,126.32,3.06444823]
[1763803098021,3.16932278,126.34,126.32,0.05444823]
[1763803099625,3.11,126.33,126.32,0.05444823]
[1763803100315,9.08126825,126.33,126.32,0.05444823]
[1763803105122,3.11,126.32,126.29,3.01]
[1763803105322,3.11,126.32,126.27,16.62]
[1763803105522,3.11,126.32,126.26,10.143]
[1763803105820,2.11839307,126.33,126.26,10.143]
[1763803105821,3.11,126.3,126.26,3.01]
[1763803106228,0.06071667,126.29,126.28,3.01]
[1763803107328,0.06071667,126.29,126.27,3.06188629]
[1763803108529,3.17071667,126.29,126.27,0.05188629]
[1763803109830,0.06071667,126.29,126.27,3.06188629]
[1763803110727,0.06071667,126.29,126.27,10.19468629]